Cogmind - Beta 14 @@@ ROGUE MODE // 2024.08.18 @ 04:04:17 Player: Olafz Result: Destroyed by Enhanced Grunt with Neutron Cannon Performance ------------- Evolutions (3) 1500 Regions Visited (10) 2000 Robots Destroyed (98) 490 Value Destroyed (3313) 3313 Prototype IDs (14) 280 Alien Tech Used (0) 0 Bonus (2906) 2906 TOTAL SCORE: 10489 Bonus ------- High Alert Combat Kills 772 Follower Combat Kills 653 Entered Garrisons 200 Used RIF Installer 1000 Met Data Miner 300 Friendly Fire -19 Cogmind --------- Core Integrity 0/700 Matter 28/300 Energy 79/100 System Corruption 0% Temperature Cool (0) Movement Core (100) Ox1 Location -7/Data Miner Parts ------- > --- POWER (1) -------- (None) > --- PROPULSION (3) --- (None) > --- UTILITY (6) ------ Improved Targeting Computer Experimental Targeting Computer Improved Target Analyzer System Mapper Quantum Router > --- WEAPON (3) ------- Heavy Flail Scythe > --- INVENTORY (5) ---- Light Nuclear Core Gauss Cannon Peak State ------------ > --- POWER ------------ Micro Nuclear Core > --- PROPULSION ------- Aluminum Leg Armored Huge Wheel > --- UTILITY ---------- High-capacity Storage Unit Advanced Targeting Computer Improved Target Analyzer Armor Integrity Analyzer Improved Medium Armor Plating > --- WEAPON ----------- Gauss Cannon Slug Cannon Magnetic Acceleration Cannon > --- INVENTORY -------- Light Nuclear Core Light Nuclear Core Large Storage Unit High-capacity Matter Pod Improved Targeting Computer Improved Targeting Computer Experimental Targeting Computer Weapon Cycler Gauss Cannon Gauss Cannon Gauss Cannon Heavy Flail Scythe [Rating: 47] Favorites ----------- Power Light Angular Momentum Engine Engine Light Angular Momentum Engine Power Core Light Nuclear Core Propulsion Light Treads Treads Light Treads Leg Aluminum Leg Wheel Armored Huge Wheel Utility Improved Targeting Computer Device Tractor Beam Storage Large Storage Unit Processor Improved Targeting Computer Hackware Hacking Suite Protection Hardened Light Armor Plating Weapon Heavy Assault Rifle Ballistic Gun Heavy Assault Rifle Ballistic Cannon Assault Cannon Launcher Grenade Launcher Impact Weapon Flail Slashing Weapon Scythe Build | -11 -10 -10 -9 -9 -9 -8 -7 -7 -7 -7 ------- Run | Yrd Mat Min Mat Sto Gar Mat Fac Low Low Dat Slots Evolved 6 | . . . 2 . . 2 2 . . . Power . | . . . . . . . . . . . Propulsion 1 | . . . . . . 1 . . . . Utility 4 | . . . 2 . . 1 1 . . . Weapon 1 | . . . . . . . 1 . . . Parts Attached 113 | 6 4 3 9 13 22 19 2 14 18 3 Power 11 | 1 . 1 2 2 1 3 . . 1 . Engine 8 | 1 . 1 2 1 1 2 . . . . Core 3 | . . . . 1 . 1 . . 1 . Reactor . | . . . . . . . . . . . Propulsion 29 | 3 2 . . 5 4 8 . 4 3 . Treads 25 | 2 2 . . 5 4 8 . 4 . . Leg 3 | 1 . . . . . . . . 2 . Wheel 1 | . . . . . . . . . 1 . Hover . | . . . . . . . . . . . Flight . | . . . . . . . . . . . Utility 29 | 1 2 . 4 2 3 4 1 5 5 2 Device 3 | . . . . 1 . . . 2 . . Storage 4 | 1 2 . . . . 1 . . . . Processor 13 | . . . . 1 3 3 1 2 3 . Hackware 5 | . . . 3 . . . . . . 2 Protection 4 | . . . 1 . . . . 1 2 . Artifact . | . . . . . . . . . . . Weapon 44 | 1 . 2 3 4 14 4 1 5 9 1 Energy Gun . | . . . . . . . . . . . Energy Cannon . | . . . . . . . . . . . Ballistic Gun 17 | 1 . . 1 4 5 3 1 2 . . Ballistic Cannon 17 | . . 1 1 . 4 1 . 2 8 . Launcher 3 | . . 1 1 . . . . 1 . . Special Weapon . | . . . . . . . . . . . Impact Weapon 6 | . . . . . 5 . . . . 1 Slashing Weapon 1 | . . . . . . . . . 1 . Piercing Weapon . | . . . . . . . . . . . Special Melee Weapon . | . . . . . . . . . . . Unidentified Prototypes 4 | . . . . 1 . . . . 1 2 Parts Lost 47 | . . . . 1 9 9 . 14 14 . Power 4 | . . . . . . 2 . 1 1 . Propulsion 14 | . . . . . 3 3 . 6 2 . Utility 13 | . . . . . 3 1 . 3 6 . Weapon 16 | . . . . 1 3 3 . 4 5 . Highest Loss Streak 12 | . . . . 1 3 6 . 8 12 . To Critical Strikes . | . . . . . . . . . . . Average Slot Usage (%) 84 | . 71 84 81 99 92 94 91 73 43 32 Engine 7 | . 14 14 10 10 8 7 7 4 . . Treads 19 | . 28 28 22 22 21 26 23 13 . . Device 2 | . . . . 9 . . . 4 2 . Storage 9 | . 14 14 11 11 11 9 7 7 5 . Processor 18 | . . . . 2 23 31 30 27 22 23 Hackware 2 | . . . 11 9 . . . . . . Protection 2 | . . . 4 11 2 . . . 1 . Ballistic Gun 13 | . 14 14 13 17 12 14 14 12 . . Ballistic Cannon 4 | . . 11 6 4 7 2 5 1 5 . Peak Build Rating 47 | 5 7 7 19 19 23 32 34 42 47 38 Average Rating 21 | 3 5 6 12 17 20 26 33 31 23 18 On Entrance 16 | . 5 6 7 18 18 23 32 33 22 17 Naked Turns . | . . . . . . . . . . . Heaviest Build 75 | 12 29 30 41 41 42 59 62 66 75 5 Greatest Support 60 | 40 40 40 40 40 40 60 60 60 28 3 Greatest Overweight (x) 23 | . . . 1 1 1 1 1 13 23 1 Average Overweight (x) . | . . . . . . . . 2 1 . Largest Inventory Capacity 20 | 8 15 15 15 15 15 20 20 20 20 5 Average Capacity 16 | 6 11 15 15 15 15 19 20 20 15 5 Most Carried 20 | 2 13 14 15 15 15 20 20 19 17 3 Average Carried 14 | 1 7 13 14 14 14 16 18 16 11 2 Final Capacity 20 | 8 15 15 15 15 15 20 20 20 5 5 Final Carried 20 | 2 13 14 15 15 15 20 19 16 3 2 Class Distribution -------------------- 74% | Mutant 12% | Scavenger-Gunner 9% | Scavenger-Mutant 4% | Hacker-Mutant Dominant Class ---------------- Mutant | -10/Materials Mutant | -10/Mines Mutant | -9/Materials Mutant | -9/Storage Mutant | -9/Garrison Mutant | -8/Materials Scavenger-Gunner | -7/Factory Mutant | -7/Lower Caves Mutant | -7/Lower Caves Mutant | -7/Data Miner Resources | -11 -10 -10 -9 -9 -9 -8 -7 -7 -7 -7 ----------- Run | Yrd Mat Min Mat Sto Gar Mat Fac Low Low Dat Matter Collected 3502 | 206 57 246 283 723 710 698 . 290 289 . Remotely 715 | . . . . 715 . . . . . . Salvage Created 3299 | . 205 131 192 859 528 967 53 307 33 24 Parts 202 | . 15 10 11 60 44 38 5 11 4 4 Haulers Intercepted 3 | . . . . 1 . 1 1 . . . Recyclers Shooed 1 | . . 1 . . . . . . . . Parts Field Recycled . | . . . . . . . . . . . Retrieved Matter . | . . . . . . . . . . . Parts Self-Destructed 16 | . . . . . . . . 9 7 . Prevented . | . . . . . . . . . . . Kills | -11 -10 -10 -9 -9 -9 -8 -7 -7 -7 -7 ------- Run | Yrd Mat Min Mat Sto Gar Mat Fac Low Low Dat Combat Hostiles Destroyed 88 | . 4 6 5 20 19 21 . 12 1 . Guns 51 | . 4 2 1 14 12 13 . 5 . . Cannons 23 | . . . . 6 7 8 . 1 1 . AOE 14 | . . 4 4 . . . . 6 . . Classes Destroyed 10 | . 2 2 . 3 1 2 . . . . Worker 1 | . . . . 1 . . . . . . Hauler 3 | . . . . 1 . 1 1 . . . Recycler 4 | . . 1 1 1 . 1 . . . . Watcher 1 | . 1 . . . . . . . . . Swarmer 27 | . . 4 2 3 8 4 . 6 . . Grunt 40 | . 4 2 3 11 4 12 . 3 1 . Brawler 2 | . . . . . . 2 . . . . Duelist 3 | . . . . . . 1 . 2 . . Sentry 13 | . . . . 6 4 2 . 1 . . Programmer 3 | . . . . . 3 . . . . . Best Kill Streak 9 | . 3 5 4 4 3 9 1 7 1 1 Combat Bots Only 9 | . 3 5 4 4 3 9 . 7 1 . Max Kills in Single Turn 4 | . 1 2 4 1 1 1 1 3 1 1 Gunslinging . | . . . . . . . . . . . Exploded 4 | . . 2 4 . . . . 3 . . Melee . | . . . . . . . . . . . Uniques/NPCs Destroyed 1 | . . . . . . . . . . 1 Data Miner (-7/Data Miner) Combat | -11 -10 -10 -9 -9 -9 -8 -7 -7 -7 -7 -------- Run | Yrd Mat Min Mat Sto Gar Mat Fac Low Low Dat Hostile Shots Fired 650 | . 31 33 4 96 125 151 . 122 87 1 Missed 189 | . 7 8 2 30 35 43 . 46 18 . Damage Taken 7802 | . 268 261 22 919 1364 1629 . 1692 1601 46 Core 1388 | . 34 93 . 64 269 205 . 228 449 46 Absorbed by Shields . | . . . . . . . . . . . Core Remaining (%) 56 | 100 . 49 . . 16 62 . . . . Volleys Fired 310 | . 23 19 4 65 64 78 3 40 14 . Largest 3 | . 1 2 2 2 2 2 2 3 3 . Hottest 149 | . 20 55 64 67 67 71 46 119 149 . Shots Fired 575 | . 23 33 7 130 123 145 6 74 34 . Gun 389 | . 23 19 5 104 66 115 6 51 . . Cannon 177 | . . 10 1 26 57 30 . 19 34 . Launcher 9 | . . 4 1 . . . . 4 . . Special . | . . . . . . . . . . . Kinetic 566 | . 23 29 6 130 123 145 6 70 34 . Thermal . | . . . . . . . . . . . Explosive 9 | . . 4 1 . . . . 4 . . Electromagnetic . | . . . . . . . . . . . Robot Hit Streak 31 | . 8 5 7 17 9 31 11 10 4 . Robot Miss Streak 6 | . 3 6 2 3 4 6 1 1 4 . Penetration Max . | . . . . . . . . . . . Secondary Targets 8 | . . . 1 2 1 1 . 3 . . Max Gunslinging Chain 1 | . . . 1 1 1 1 . 1 . . Shots Hit Robots 381 | . 14 16 5 90 60 112 5 59 19 1 Core Hits 161 | . 8 12 6 35 27 40 2 27 3 1 Critical Kills 5 | . . . 1 . . 3 . 1 . . Critical Parts Destroyed 4 | . . . . . . 2 . 2 . . Critical Strikes 26 | . . . 1 2 2 10 . 6 5 . Destroy 11 | . . . 1 . . 6 . 4 . . Blast 15 | . . . . 2 2 4 . 2 5 . Melee Attacks 19 | . . . . . 15 . . . 3 1 Impact 16 | . . . . . 15 . . . . 1 Slashing 3 | . . . . . . . . . 3 . Piercing . | . . . . . . . . . . . Sneak Attacks 1 | . . . . . . . . . . 1 Combat Hostiles . | . . . . . . . . . . . Follow-up Attacks . | . . . . . . . . . . . Damage Inflicted 8094 | . 194 436 233 1477 1202 2138 68 1672 618 56 Guns 4121 | . 194 105 41 1124 535 1444 68 610 . . Cannons 2894 | . . 74 26 353 667 694 . 462 618 . Explosions 1021 | . . 255 166 . . . . 600 . . Melee 56 | . . . . . . . . . . 56 Ramming 2 | . . 2 . . . . . . . . Kinetic 7015 | . 194 179 67 1477 1202 2138 68 1072 618 . Thermal . | . . . . . . . . . . . Explosive 1021 | . . 255 166 . . . . 600 . . Electromagnetic . | . . . . . . . . . . . Impact 56 | . . . . . . . . . . 56 Slashing . | . . . . . . . . . . . Piercing . | . . . . . . . . . . . Highest Corruption 12 | . . . . . 12 3 . . . . Average Corruption 10 | . . . . . 11 3 . . . . Corruption Purged . | . . . . . . . . . . . Corruption Blocked . | . . . . . . . . . . . Effects 49 | . . . . . 45 4 . . . . Message Errors 13 | . . . . . 12 1 . . . . Matter Fused 8 | . . . . . 8 . . . . . Heat Flow Errors 6 | . . . . . 4 2 . . . . Energy Discharges 6 | . . . . . 6 . . . . . Data Loss (minor) 8 | . . . . . 7 1 . . . . Misfires 1 | . . . . . 1 . . . . . Alerts 4 | . . . . . 4 . . . . . Weapon Failures 3 | . . . . . 3 . . . . . Overload Shots . | . . . . . . . . . . . Overflow Damage 72 | . . 40 . 10 21 1 . . . . Projectiles 32 | . . . . 10 21 1 . . . . Explosions 40 | . . 40 . . . . . . . . Melee . | . . . . . . . . . . . Knockbacks 22 | . . 2 . 6 7 7 . . . . Impact . | . . . . . . . . . . . Kinetic 19 | . . 2 . 5 6 6 . . . . Secondary 3 | . . . . 1 1 1 . . . . Self-Inflicted Damage 111 | . . 24 . . 32 . . 55 . . Shots 6 | . . 2 . . 1 . . 3 . . Rammed 1 | . . 1 . . . . . . . . Targets Rammed 1 | . . 1 . . . . . . . . Kicked . | . . . . . . . . . . . Crushed . | . . . . . . . . . . . Highest Temperature 624 | . 8 29 36 174 247 249 . 87 624 . Average Temperature 72 | . 3 13 14 37 46 51 . 45 280 . Received Heat Transfer 2545 | . 144 66 12 399 195 819 . 141 769 . Effects 18 | . . . . . . 3 . . 15 . Shutdowns 1 | . . . . . . . . . 1 . Energy Bleed 2 | . . . . . . . . . 2 . Interference 4 | . . . . . . 3 . . 1 . Matter Decay 3 | . . . . . . . . . 3 . Short Circuit 1 | . . . . . . . . . 1 . Damage (minor) 2 | . . . . . . . . . 2 . Damage (major) 5 | . . . . . . . . . 5 . Siege Activations . | . . . . . . . . . . . Robots Corrupted . | . . . . . . . . . . . Combat Hostiles . | . . . . . . . . . . . Parts Fried . | . . . . . . . . . . . Impact Corruptions . | . . . . . . . . . . . Robots Melted . | . . . . . . . . . . . Combat Hostiles . | . . . . . . . . . . . Parts Melted . | . . . . . . . . . . . Heat Transferred . | . . . . . . . . . . . Parts Sabotaged . | . . . . . . . . . . . Parts Stolen . | . . . . . . . . . . . Parts Stripped . | . . . . . . . . . . . Power Chain Reactions . | . . . . . . . . . . . Alert | -11 -10 -10 -9 -9 -9 -8 -7 -7 -7 -7 ------- Run | Yrd Mat Min Mat Sto Gar Mat Fac Low Low Dat Peak Influence 1414 | . 192 361 442 626 1414 1080 498 . . . Initial 689 | . . 74 140 186 416 689 491 . . . Average 614 | . 127 304 377 394 900 886 491 . . . Maximum Alert Level 4 | . . 1 2 2 4 3 2 . . . Low Security (%) 12 | 100 100 4 8 9 . . . . . . Level 1 15 | . . 95 23 34 3 . . . . . Level 2 33 | . . . 67 55 21 21 100 . . . Level 3 28 | . . . . . 47 78 . . . . Level 4 9 | . . . . . 26 . . . . . Level 5 . | . . . . . . . . . . . High Security . | . . . . . . . . . . . Max Security . | . . . . . . . . . . . Squads Dispatched 14 | . 4 . 1 5 . 3 1 . . . Investigation 2 | . 2 . . . . . . . . . Extermination 1 | . . . . . . . 1 . . . Reinforcement 6 | . 2 . 1 2 . 1 . . . . Assault 4 | . . . . 2 . 2 . . . . Garrison 1 | . . . . 1 . . . . . . Intercept . | . . . . . . . . . . . Searches Triggered . | . . . . . . . . . . . Construction Impeded . | . . . . . . . . . . . Haulers Reinforced . | . . . . . . . . . . . Active Scanning Responses . | . . . . . . . . . . . Cargo Convoy Interrupts . | . . . . . . . . . . . Stealth | -11 -10 -10 -9 -9 -9 -8 -7 -7 -7 -7 --------- Run | Yrd Mat Min Mat Sto Gar Mat Fac Low Low Dat Distress Signals 8 | . . . 2 1 . 5 . . . . Communications Jammed . | . . . . . . . . . . . Distress Signals . | . . . . . . . . . . . Times Spotted 166 | . 9 8 12 38 35 40 . 14 9 1 Peak Tracking Total 10 | . 4 5 10 7 4 6 1 9 6 2 Tactical Retreats 7 | . . 2 1 . . 2 . . 2 . Traps | -11 -10 -10 -9 -9 -9 -8 -7 -7 -7 -7 ------- Run | Yrd Mat Min Mat Sto Gar Mat Fac Low Low Dat Traps Triggered 3 | . 1 . . . 2 . . . . . Indirectly . | . . . . . . . . . . . Trap Hack Attempts . | . . . . . . . . . . . Triggered . | . . . . . . . . . . . Disarmed . | . . . . . . . . . . . Reprogrammed . | . . . . . . . . . . . Reused . | . . . . . . . . . . . Traps Extracted . | . . . . . . . . . . . Installed . | . . . . . . . . . . . Triggered . | . . . . . . . . . . . Machines | -11 -10 -10 -9 -9 -9 -8 -7 -7 -7 -7 ---------- Run | Yrd Mat Min Mat Sto Gar Mat Fac Low Low Dat Machines Disabled 14 | . . 5 . 3 3 1 . 2 . . Max in Single Turn 3 | . . 3 . 1 3 1 . 1 . . Phase Generator 1 | . . . . . 1 . . . . . Machines Repaired . | . . . . . . . . . . . Machines Dismantled . | . . . . . . . . . . . Machines Sabotaged . | . . . . . . . . . . . Overloaded Fab Kills . | . . . . . . . . . . . Hacking | -11 -10 -10 -9 -9 -9 -8 -7 -7 -7 -7 --------- Run | Yrd Mat Min Mat Sto Gar Mat Fac Low Low Dat Machines Accessed 20 | . 2 . . 7 5 1 . 1 . 4 Terminals 13 | . 1 . . 6 5 1 . . . . Fabricators . | . . . . . . . . . . . Repair Stations . | . . . . . . . . . . . Recycling Units 1 | . 1 . . . . . . . . . Scanalyzers . | . . . . . . . . . . . Garrison Access 1 | . . . . 1 . . . . . . Total Hacks 62 | . 4 . . 12 10 4 . 1 . 31 Successful 43 | . 1 . . 6 3 1 . 1 . 31 Failed 19 | . 3 . . 6 7 3 . . . . Catastrophic 2 | . . . . . 1 1 . . . . Database Lockouts . | . . . . . . . . . . . Manual 12 | . 4 . . 4 . 4 . . . . Terminals 26 | . 2 . . 10 10 4 . . . . Fabricators . | . . . . . . . . . . . Repair Stations . | . . . . . . . . . . . Recycling Units 2 | . 2 . . . . . . . . . Scanalyzers . | . . . . . . . . . . . Garrison Access 2 | . . . . 2 . . . . . . Terminal Hacks 39 | . . . . 4 3 . . 1 . 31 Record 11 | . . . . . . . . . . 11 Part Schematic 12 | . . . . . . . . . . 12 Robot Schematic 5 | . . . . . . . . . . 5 Prototype ID Bank 3 | . . . . . . . . . . 3 Open Door 6 | . . . . 4 1 . . 1 . . Garrison Registry 1 | . . . . . 1 . . . . . Security Stations 1 | . . . . . 1 . . . . . Fabricator Hacks . | . . . . . . . . . . . Repair Station Hacks . | . . . . . . . . . . . Recycling Unit Hacks . | . . . . . . . . . . . Scanalyzer . | . . . . . . . . . . . Garrison Access Hacks 1 | . . . . 1 . . . . . . Unlock Access 1 | . . . . 1 . . . . . . Unauthorized Hacks 3 | . 1 . . 1 . 1 . . . . Terminals 2 | . . . . 1 . 1 . . . . Botnet 2 | . . . . 1 . 1 . . . . Fabricators . | . . . . . . . . . . . Repair Stations . | . . . . . . . . . . . Recycling Units 1 | . 1 . . . . . . . . . Tunnel 1 | . 1 . . . . . . . . . Scanalyzers . | . . . . . . . . . . . Garrison Access . | . . . . . . . . . . . Data Cores Recovered . | . . . . . . . . . . . Used . | . . . . . . . . . . . Hacking Detections 10 | . 2 . . 3 4 1 . . . . Full Trace Events 1 | . . . . . 1 . . . . . Feedback Events . | . . . . . . . . . . . Feedback Blocked . | . . . . . . . . . . . Robot Schematics Acquired 5 | . . . . . . . . . . 5 Robots Built . | . . . . . . . . . . . Authchips . | . . . . . . . . . . . Time . | . . . . . . . . . . . Total Robot Build Rating . | . . . . . . . . . . . Part Schematics Acquired 12 | . . . . . . . . . . 12 Parts Built . | . . . . . . . . . . . Authchips . | . . . . . . . . . . . Time . | . . . . . . . . . . . Total Part Build Rating . | . . . . . . . . . . . Parts Repaired . | . . . . . . . . . . . Time . | . . . . . . . . . . . Parts Recycled . | . . . . . . . . . . . Recycled Matter . | . . . . . . . . . . . Retrieved Matter . | . . . . . . . . . . . Retrieved Components . | . . . . . . . . . . . Parts Scanalyzed . | . . . . . . . . . . . Part Schematics Acquired . | . . . . . . . . . . . Parts Damaged . | . . . . . . . . . . . Bothacking | -11 -10 -10 -9 -9 -9 -8 -7 -7 -7 -7 ------------ Run | Yrd Mat Min Mat Sto Gar Mat Fac Low Low Dat Used RIF Installer 2 | . . . . . 2 . . . . . Alert ID Control 1 | . . . . . 1 . . . . . Robots Hacked . | . . . . . . . . . . . Non-combat . | . . . . . . . . . . . Combat . | . . . . . . . . . . . Robot Hacks Applied . | . . . . . . . . . . . Relay Couplers Released . | . . . . . . . . . . . Fabnet Peak Effective % . | . . . . . . . . . . . Robots Rewired 4 | . . . . . 2 . . 2 . . Allies Hacked 2 | . . . . . 2 . . . . . Hacks Repelled . | . . . . . . . . . . . Allies | -11 -10 -10 -9 -9 -9 -8 -7 -7 -7 -7 -------- Run | Yrd Mat Min Mat Sto Gar Mat Fac Low Low Dat Total Allies 7 | . . 1 . 2 2 . . 2 . . Largest Group 2 | . . . 1 2 2 2 . 2 2 . Highest-Rated Group 62 | . . . 31 62 62 51 . 32 32 . Highest-Rated Ally 31 | . . . 31 31 31 31 . 16 16 . Total Orders . | . . . . . . . . . . . Ally Attacks 148 | . . . 17 32 48 16 . 25 10 . Total Damage 2202 | . . . 256 426 636 434 . 355 95 . Kills 33 | . . . 6 7 13 5 . 1 1 . Allies Corrupted . | . . . . . . . . . . . Allies Melted . | . . . . . . . . . . . Intel | -11 -10 -10 -9 -9 -9 -8 -7 -7 -7 -7 ------- Run | Yrd Mat Min Mat Sto Gar Mat Fac Low Low Dat Robot Analysis Total . | . . . . . . . . . . . Derelict Logs Recovered 5 | . . 2 . . . . . 2 1 . Drone Launches . | . . . . . . . . . . . Drone Recoveries . | . . . . . . . . . . . Exploration | -11 -10 -10 -9 -9 -9 -8 -7 -7 -7 -7 ------------- Run | Yrd Mat Min Mat Sto Gar Mat Fac Low Low Dat Turns Passed 5578 | 58 356 247 259 878 1391 642 271 1067 369 40 Spaces Moved 2446 | 37 184 118 122 371 670 239 118 294 231 62 Core 328 | 8 . . . . . . . 49 209 62 Treads 2091 | 24 184 118 122 371 670 239 118 245 . . Legs 15 | 5 . . . . . . . . 10 . Wheels 12 | . . . . . . . . . 12 . Hover . | . . . . . . . . . . . Flight . | . . . . . . . . . . . Fastest Speed 50 | 50 160 160 160 160 160 160 163 163 50 50 Average Speed 178 | 130 160 160 188 174 161 160 219 308 124 54 Slowest Speed 1200 | 160 160 160 240 240 240 240 243 700 1200 100 Overloaded Moves . | . . . . . . . . . . . Propulsion Burnouts . | . . . . . . . . . . . Robots Hopped . | . . . . . . . . . . . Cave-ins Triggered 1 | . . . . . 1 . . . . . Exploration Rate (%) 41 | 3 31 31 15 75 93 35 4 51 45 75 Regions Visited 10 Branch Regions 5 Pre-discovered Areas 2 | . 1 . . . . . . . . 1 Known Exits Taken 1 | . . . . 1 . . . . . . Unknown Exits Taken 8 | 1 1 1 1 . . 1 1 1 1 . Scrap Searched 5 | . . 1 . . . . . 2 2 . Spaces Dug 13 | . . . . . 10 . . . 3 . Terrain Destroyed 148 | . . 7 6 3 83 10 . 25 14 . Melee 13 | . . . . . 10 . . . 3 . Projectile 25 | . . . . 3 . 10 . 1 11 . AOE 110 | . . 7 6 . 73 . . 24 . . Terrain Rammed . | . . . . . . . . . . . Walls Destroyed . | . . . . . . . . . . . Machines Disabled . | . . . . . . . . . . . Actions | -11 -10 -10 -9 -9 -9 -8 -7 -7 -7 -7 --------- Run | Yrd Mat Min Mat Sto Gar Mat Fac Low Low Dat Total 3093 | 45 222 142 149 481 828 360 125 393 282 66 Wait 37 | . 1 1 . 5 13 9 1 . 7 . Move 2435 | 36 183 117 121 370 668 238 117 293 230 62 Hop . | . . . . . . . . . . . Pick Up 43 | 2 8 . 5 10 4 11 . 2 1 . Fast Attach 36 | 5 2 1 7 2 4 4 1 4 4 2 Attach 41 | 1 . 1 . 2 5 8 1 8 14 1 Detach 19 | 1 2 1 2 3 . 1 1 4 4 . Swap 36 | . 2 1 2 9 13 7 . 2 . . Drop 37 | . 1 . 8 15 3 4 1 . 5 . Fire 310 | . 23 19 4 65 64 78 3 40 14 . Melee 19 | . . . . . 15 . . . 3 1 Ram . | . . . . . . . . . . . Kick . | . . . . . . . . . . . Crush 1 | . . 1 . . . . . . . . Escape Stasis . | . . . . . . . . . . . Rewire 79 | . . . . . 39 . . 40 . . Trap . | . . . . . . . . . . . Miscellaneous . | . . . . . . . . . . . Route ------- -11/Scrapyard -10/Materials -10/Mines -9/Materials (discovered 2 exits: Min / *Sto) -9/Storage (discovered 2 exits: *Mat / Gar) -9/Garrison (discovered 3 exits: *Mat x3) -8/Materials -7/Factory -7/Lower Caves -7/Lower Caves -7/Data Miner (discovered 1 exit: [*Pro]) History --------- Turn | Location | Event 5 | -11/Scrapyard | Discovered new exit (range 14) 59 | -11/Scrapyard | Entered Materials 300 | -10/Materials | Build established: Mutant 312 | -10/Materials | Discovered new exit (range 6) 415 | -10/Materials | Entered Mines 456 | -10/Mines | Found DCF Scrap (13 items) 458 | -10/Mines | Learned 4 Materials zone layouts 575 | -10/Mines | Core integrity fell below 50% 644 | -10/Mines | Discovered new exit (range 6) 657 | -10/Mines | Learned Materials stockpile data 658 | -10/Mines | Received a Mining Laser from a helpful Derelict 662 | -10/Mines | Entered Materials 662 | -9/Materials | Accompanied by 1 ally 662 | -9/Materials | Evolved 2 slots: Utility x2 663 | -9/Materials | Identified exit to Mines 876 | -9/Materials | Discovered new exit (range 9) 921 | -9/Materials | Entered Storage 921 | -9/Storage | Accompanied by 1 ally 1451 | -9/Storage | Found Prototype Processor 1685 | -9/Storage | Discovered new exit (range 16) 1727 | -9/Storage | Met a pair of Derelict thieves 1742 | -9/Storage | Garrison activated, responded to threat 1798 | -9/Storage | Identified exit to Garrison 1799 | -9/Storage | Entered Garrison 1799 | -9/Garrison | Accompanied by 2 allies 1902 | -9/Garrison | Crushed by falling debris 1902 | -9/Garrison | System corruption reached 10% 1933 | -9/Garrison | Lost 3 parts (2u1w) 1953 | -9/Garrison | Triggered checkpoint 2103 | -9/Garrison | Triggered checkpoint 2133 | -9/Garrison | Triggered checkpoint 2140 | -9/Garrison | Triggered checkpoint 2362 | -9/Garrison | Discovered new exit (range 12) 2373 | -9/Garrison | Triggered checkpoint 2657 | -9/Garrison | Phase Generator disabled 2663 | -9/Garrison | Learned Materials security intel 2665 | -9/Garrison | Discovered new exit (range 13) 2699 | -9/Garrison | Core integrity fell below 50% 2807 | -9/Garrison | Triggered checkpoint 2880 | -9/Garrison | Installed Relay Interface Framework 2969 | -9/Garrison | Triggered checkpoint 3027 | -9/Garrison | Core integrity fell below 20% 3051 | -9/Garrison | Lost 3 parts (1n2w) 3087 | -9/Garrison | Expanded RIF knowledge: Alert ID Control 3166 | -9/Garrison | Discovered new exit (range 12) 3177 | -9/Garrison | Discovered new exit (range 51) 3177 | -9/Garrison | Discovered new exit (range 7) 3177 | -9/Garrison | Discovered new exit (range 87) 3190 | -9/Garrison | Entered Materials 3190 | -8/Materials | Accompanied by 2 allies 3190 | -8/Materials | Evolved 2 slots: Propulsion x1, Utility x1 3590 | -8/Materials | First assault squad dispatched 3676 | -8/Materials | Lost 6 parts (1p2n1u2w) 3706 | -8/Materials | Destroyed 9 combat bots 3785 | -8/Materials | Discovered new exit (range 10) 3832 | -8/Materials | Entered Factory 3832 | -7/Factory | Evolved 2 slots: Utility x1, Weapon x1 4016 | -7/Factory | Discovered new exit (range 16) 4103 | -7/Factory | Entered Lower Caves 4441 | -7/Lower Caves | Build established: Scavenger-Gunner 4613 | -7/Lower Caves | Attracted the attention of an 0b10 outpost 4651 | -7/Lower Caves | Destroyed 7 combat bots 4690 | -7/Lower Caves | Lost 8 parts (3n2u3w) 4797 | -7/Lower Caves | Spotted B-75 Beast 4828 | -7/Lower Caves | Allies destroyed B-75 Beast 4845 | -7/Lower Caves | Lost 5 parts (1p2n1u1w) 4938 | -7/Lower Caves | Build established: Mutant 5121 | -7/Lower Caves | Discovered new exit (range 7) 5170 | -7/Lower Caves | Entered another Lower Caves area 5170 | -7/Lower Caves | Accompanied by 2 allies 5192 | -7/Lower Caves | Encountered a Warlord checkpoint 5373 | -7/Lower Caves | Spotted B-75 Beast 5397 | -7/Lower Caves | Core integrity fell below 50% 5439 | -7/Lower Caves | Core integrity fell below 20% 5442 | -7/Lower Caves | Learned Factory trap positions 5464 | -7/Lower Caves | Lost 12 parts (1p2n4u5w) 5472 | -7/Lower Caves | Identified Exp. Targeting Computer 5522 | -7/Lower Caves | Discovered new exit (range 8) 5539 | -7/Lower Caves | Entered Data Miner 5539 | -7/Data Miner | Discovered new exit (range 7) 5549 | -7/Data Miner | Met Data Miner 5559 | -7/Data Miner | Learned location of Section 7 (-2) 5559 | -7/Data Miner | Acquired the access code to Warlord's prototype stash 5567 | -7/Data Miner | Received God Mode back door access code from Data Miner 5573 | -7/Data Miner | Destroyed Data Miner 5575 | -7/Data Miner | Found Prototype Hackware 5575 | -7/Data Miner | Identified System Mapper 5578 | -7/Data Miner | Found Prototype Hackware 5578 | -7/Data Miner | Identified Quantum Router 5579 | -7/Data Miner | Destroyed by Enhanced Grunt with Neutron Cannon Last Messages --------------- Hvy. Deuterium Engine >>Prototype ID Bank Downloading prototype IDs... Thermal Defense Suite Cld. Aerolev Unit >>Prototype ID Bank Downloading prototype IDs... Gui. EMP Blaster Scatter Rocket Array Data Miner: I've just received further instructions. God Mode is nearly complete and we think you might be able to put it to better use than Warlord, so if you see an opportunity, hack it and enter \\7W4P to gain control via the back door I've installed. Now off with you. Sneak attack on Data Miner. Data Miner destroyed. Acquired Prototype Hackware. Identified System Mapper. Acquired Prototype Hackware. Identified Quantum Router. Map ----- +----------------------------------------------------+ | | | | | | | | | | | | | | | | | | | | | | | | | | | | | ???????????????????????????????????? | | ???????????????????????????????????? | | ???????????????????????????????????? | | ???????????????????????????????????? | | ???????????????????????????????????? | | ???????##############??????????????# | | ??????""""""""""""""######????????## | | ?????"""""""" """"""""########## | | ????""""""""" g | | ????"""""" | | ????""""""* | | ????"""""% @ | | ????""""""= | | ????"""""" """""""""""" | | ????""""""" """"########## | | ?????"""""" """""###????????? | | ??????""""""" "#####??????????? | | ??????######"## "#??????????????? | | ???????????#"### "#??????????????? | | ???????????#"### "#??????????????? | | ???????????#"## "#??????????????? | | ???????????#"## "#??????????????? | | ?????????????# "#??????????????? | | ?????????????### "#??????????????? | | ???????????????# "##?????????????? | | ??????????????## ""#?????????????? | | ???????????#?## ""#?????????????? | | ??????????##"#"X ""#?????????????? | | ??????????""""" "####??????????? | | ??????????""""" X"""""??????????? | | ??????????##"#"X "##"#??????????? | | ???????????#?## X""""#??????????? | | ??????????????## "##"#??????????? | | ???????????????#######?????????????? | | ???????????????????????????????????? | | ???????????????????????????????????? | +----------------------------------------------------+ Best States ------------- Heat Dissipation 34 Energy Generation 18 Energy Capacity 275 Matter Stores 300 Matter Capacity 300 Sight Range 16 Terrain Scan Density 10 EM Shielding 2 Armor Coverage 225 Evasion (%) 50 Targeting Accuracy 22 Target Analysis 6 Armor Integrity Analysis 30 Recoil Reduction 3 Offensive Hacking 30 Item Schematics ----------------- Combat Drone Bay | -7/Data Miner | Free Lgt. Regenerative Plating | -7/Data Miner | Free Cld. Aerolev Unit | -7/Data Miner | Free Gravity Neutralizer | -7/Data Miner | Free Imp. Heavy Laser | -7/Data Miner | Free Antigrav System | -7/Data Miner | Free Imp. Remote Datajack | -7/Data Miner | Free Imp. Recalibrator | -7/Data Miner | Free Nuclear Pulse Thruster | -7/Data Miner | Free Lrn. Proton Cannon | -7/Data Miner | Free Matter Neutralizer | -7/Data Miner | Free Adv. Transmission Jammer | -7/Data Miner | Free Robot Schematics ------------------ G-47 Trooper | -7/Data Miner | Free B-48 Gladiator | -7/Data Miner | Free O-24 Administrator | -7/Data Miner | Free R-10 Processor | -7/Data Miner | Free L-41 Fighter | -7/Data Miner | Free Fabricated ------------ Nothing Alien Tech Used ----------------- None Achievements -------------- None Challenges ------------ None Game ------ Seed GravmagFactoryMegatreads Manual? 0 Play Time 01:02:58 Cumulative 222.8 hours Start 2024.08.18 @ 02:20:12 End 2024.08.18 @ 04:04:17 Sessions 1 Manual Loads 0 Difficulty Rogue Special Mode None Game No. 400 Rogue 398 Adventurer 2 Explorer 0 Win Type - Total 10 Types 8/0/0/2/0/0/0/0/0 Lore% 72 Gallery% 67 Achievement% 56 Wizard Run 0 Options --------- Layout 0 ASCII 0 Keyboard 1 Movement Numpad Keybinds 1 Fullscreen 2 Font 18/SmallcapsGlow Map View 76x50 Zoom Use 0% Tactical HUD 1 Map Filters NONE Filters NONE Steam 1 RUN: 8f7d80cf-aa94-42c2-9be4-2dec516040ef